bitfinex/quotes_ETHUSD_20251218
["timestamp","ask_amount","ask_price","bid_price","bid_amount"]
[1766075063910,0.46438023,2941.6,2940.4,2.7576]
[1766075064111,1.01238023,2941.7,2940.5,2.7576]
[1766075064547,1.01238023,2941.7,2940.5,6.15829885]
[1766075064720,1.01238023,2941.7,2940.5,3.71362182]
[1766075064721,0.44117124,2941.6,2940.5,3.71362182]
[1766075064928,0.548,2941.7,2940.5,0.95602182]
[1766075065145,0.548,2941.7,2940.3,3.40192993]
[1766075065661,3.39951047,2941.6,2940.3,3.40192993]
[1766075065816,3.39951047,2941.6,2940.3,0.001]
[1766075066017,0.46438023,2941.6,2940.3,0.001]
[1766075066824,0.548,2941.5,2940.6,2.7576]
[1766075067167,0.548,2941.4,2940.7,0.27576]
[1766075067649,0.548,2941.4,2941.0,0.9403]
[1766075067838,0.548,2941.4,2941.0,2.7576]
[1766075068035,0.94382177,2942.2,2941.0,2.7576]
[1766075068339,1.01238023,2942.1,2941.0,2.7576]
[1766075068546,8.79606836,2941.9,2940.7,0.27576]
[1766075068844,0.46438023,2941.8,2940.7,2.7576]
[1766075069032,0.46438023,2941.8,2940.7,6.15814492]
[1766075069240,1.01238023,2942.1,2940.7,2.7576]
[1766075069416,0.405504,2942.0,2940.7,2.7576]
[1766075069614,0.46438023,2941.8,2940.5,3.40076206]
[1766075069818,0.85073463,2941.8,2940.6,0.61583621]
[1766075070348,0.3863544,2941.8,2940.7,6.80103858]
[1766075070548,0.548,2941.7,2940.7,6.80103858]
[1766075070748,0.548,2941.7,2941.1,0.9403]
[1766075070953,8.79606836,2942.5,2940.7,13.60214034]
[1766075071258,0.548,2942.4,2941.1,1.8173]
[1766075071427,0.548,2942.3,2941.6,0.9403]
[1766075071631,0.548,2942.5,2942.0,2.7576]
[1766075071967,0.548,2942.5,2942.1,2.7576]
[1766075072433,12.19357656,2943.4,2942.1,2.7576]
[1766075072748,1.01238023,2943.3,2942.1,2.7576]
[1766075073139,8.79606836,2943.4,2942.2,0.9403]
[1766075073343,0.548,2943.3,2942.0,0.61568294]
[1766075073655,0.548,2943.2,2942.5,0.9403]
[1766075073863,0.548,2943.2,2942.5,2.7576]
[1766075074153,0.002,2943.5,2942.1,10.19679819]
[1766075074351,0.548,2943.4,2942.1,10.19679819]
[1766075074556,0.548,2943.8,2942.5,0.9403]
[1766075074722,0.002,2943.7,2942.9,0.9403]
[1766075074923,0.002,2943.7,2943.1,2.7576]
[1766075075455,0.002,2943.7,2942.4,0.548]
[1766075075652,0.002,2943.7,2942.6,6.79671038]
[1766075075854,0.002,2943.7,2942.9,2.7576]
[1766075076221,0.002,2943.7,2942.7,0.67967104]
[1766075076421,0.548,2943.6,2942.8,2.7576]
[1766075076634,0.548,2943.6,2942.9,0.9403]
[1766075076833,0.548,2943.6,2942.7,0.67967104]
[1766075076834,0.548,2943.6,2943.0,2.7576]
[1766075077857,0.548,2943.6,2943.0,3.39784739]
[1766075078059,0.548,2943.6,2943.1,2.7576]
[1766075078535,0.548,2943.6,2942.7,6.15580301]
[1766075078721,0.548,2943.6,2942.8,2.7576]
[1766075079029,7.80679771,2943.6,2942.1,6.15650163]
[1766075079234,7.80679771,2943.6,2942.1,2.7576]
[1766075079431,0.46438023,2943.2,2942.1,2.7576]
[1766075080049,3.86204596,2943.2,2942.1,2.7576]
[1766075080235,1.60557459,2943.1,2942.1,2.7576]
[1766075080440,0.548,2943.0,2942.1,2.7576]
[1766075080928,0.548,2943.0,2941.6,3.39951047]
[1766075081128,0.548,2942.9,2941.6,10.19853141]
[1766075081346,0.548,2942.9,2941.7,2.7576]
[1766075081541,0.86988423,2943.6,2942.0,1.8173]
[1766075081751,0.86988423,2943.6,2942.6,0.9403]
[1766075081752,0.548,2943.5,2942.6,0.9403]
[1766075082261,0.548,2943.5,2942.4,0.9403]
[1766075082462,0.548,2943.5,2942.6,0.9532]
[1766075082662,8.79806836,2943.7,2942.8,2.8302]
[1766075082663,0.548,2943.4,2942.8,2.8302]
[1766075083238,0.548,2943.4,2942.8,0.28302]
[1766075083435,0.002,2943.6,2942.3,1.877]
[1766075083636,0.002,2943.6,2943.0,1.877]
[1766075083835,0.002,2943.6,2943.2,2.8302]
[1766075084148,0.002,2944.1,2943.6,1.877]
[1766075084336,0.002,2944.1,2943.6,2.8302]
[1766075084536,0.002,2944.8,2943.8,0.9532]
[1766075084764,0.548,2944.6,2943.9,2.8302]
[1766075085069,9.34406836,2944.6,2942.8,6.79624846]
[1766075085271,0.46438023,2944.5,2943.0,1.877]
[1766075085438,0.46438023,2944.5,2943.3,0.9532]
[1766075085741,12.19257674,2944.2,2942.8,6.22830743]
[1766075085929,12.19257674,2944.2,2942.9,2.8302]
[1766075086138,0.46438023,2944.1,2942.9,2.8302]
[1766075086364,0.548,2944.0,2942.9,2.8302]
[1766075086745,0.548,2944.0,2942.6,3.39833943]
[1766075087063,0.548,2944.0,2942.7,3.17003394]
[1766075087845,0.46438023,2943.8,2942.7,3.17003394]
[1766075088668,0.46438023,2943.8,2942.3,0.548]
[1766075088669,9.26044859,2943.8,2942.3,3.3782]
[1766075088866,9.26044859,2943.8,2942.4,2.8302]
[1766075089270,0.98084486,2944.4,2942.4,1.877]
[1766075089569,0.46438023,2944.1,2942.3,2.8302]
[1766075089872,0.46438023,2943.8,2942.4,6.22876617]
[1766075090071,0.548,2943.7,2942.5,2.8302]
[1766075090259,0.548,2943.6,2942.6,0.9532]
[1766075090447,0.548,2943.6,2942.4,0.9532]
[1766075090774,0.548,2943.6,2942.6,2.8302]
[1766075090972,0.548,2943.6,2942.7,0.9532]
[1766075091478,0.548,2943.6,2942.8,1.877]
[1766075091643,0.002,2944.0,2942.8,1.877]
[1766075091843,0.46438023,2943.9,2943.0,2.8302]
[1766075092180,0.85069424,2943.9,2942.6,2.8302]
[1766075092348,0.46438023,2943.7,2942.6,2.8302]
[1766075092548,0.46438023,2943.7,2942.8,2.8302]
[1766075092754,0.548,2943.6,2942.9,1.877]
[1766075092948,0.85069424,2943.9,2942.9,2.8302]
[1766075093154,0.548,2943.7,2942.9,2.8302]
[1766075094150,0.548,2943.7,2942.5,0.001]
[1766075094350,0.002,2944.0,2943.1,2.8302]
[1766075094577,0.002,2944.0,2942.5,3.3792]
[1766075094761,1.01238023,2943.9,2942.6,2.8302]
[1766075095092,1.01238023,2943.9,2942.5,3.94740816]
[1766075095093,2.67277352,2943.9,2942.7,0.67776082]
[1766075095248,2.67277352,2943.9,2942.8,2.8302]
[1766075095880,2.67277352,2943.9,2942.8,0.9532]
[1766075096087,6.06973166,2943.9,2942.5,3.94744892]
[1766075096282,1.82645392,2943.8,2942.5,6.96425264]
[1766075096647,1.82645392,2943.8,2942.5,4.13405264]
[1766075096983,1.82645392,2943.8,2942.7,2.8302]
[1766075097358,1.82645392,2943.8,2942.6,2.8302]
[1766075097568,1.82645392,2943.8,2942.5,10.36272332]
[1766075097779,1.82645392,2943.8,2942.6,3.86647233]
[1766075098183,1.82645392,2943.8,2942.6,7.26481439]
[1766075098649,1.82645392,2943.8,2942.7,2.8302]
[1766075098850,2.29083415,2943.8,2942.7,1.877]
[1766075099073,2.29003415,2943.8,2942.8,2.8302]
[1766075099272,0.62349434,2943.7,2942.6,4.43461942]
[1766075099577,2.29003415,2943.8,2942.7,2.8302]
[1766075099578,1.82565392,2943.8,2942.7,2.8302]
[1766075100349,0.002,2944.0,2942.8,0.03398124]
[1766075100689,0.548,2943.9,2943.0,2.6338]
[1766075100852,0.002,2944.0,2943.1,0.548]
[1766075101058,0.002,2944.0,2943.4,1.7728]
[1766075101260,0.002,2944.0,2942.6,1.03627233]
[1766075101261,0.002,2944.0,2943.0,2.6338]
[1766075101460,0.548,2943.9,2942.6,1.58427233]
[1766075101693,3.86315042,2944.0,2943.0,1.7728]
[1766075101694,0.002,2944.0,2943.0,1.7728]
[1766075101910,0.002,2944.0,2943.1,2.6338]
[1766075102062,0.002,2944.1,2943.0,0.548]
[1766075102394,0.002,2944.1,2942.7,0.548]
[1766075102395,0.548,2944.0,2942.7,0.548]
[1766075102708,0.548,2944.0,2942.5,0.001]
[1766075102709,8.79606836,2943.5,2942.5,0.001]
[1766075102858,8.79606836,2943.5,2941.3,0.001]
[1766075102859,8.79606836,2942.7,2941.3,2.6348]
[1766075103202,8.79606836,2942.6,2941.6,2.6338]
[1766075103514,0.548,2942.6,2941.6,1.7728]
[1766075103691,0.548,2942.6,2941.3,0.001]
[1766075104362,0.405504,2942.5,2941.3,0.001]
[1766075104563,1.40242773,2942.4,2940.8,0.548]
[1766075104870,0.405504,2942.3,2941.1,0.861]
[1766075105066,0.405504,2942.3,2941.1,2.6338]
[1766075105266,0.405504,2942.3,2940.8,3.1818]
[1766075105492,0.405504,2942.0,2940.8,2.6338]
[1766075105667,1.36684923,2942.0,2940.9,0.26338]
[1766075105869,0.405504,2941.8,2940.4,2.6348]
[1766075106068,0.405504,2941.8,2940.4,3.40180061]
[1766075106269,0.46438023,2941.6,2940.4,0.001]
[1766075106493,0.405504,2941.5,2940.3,0.001]
[1766075106677,0.405504,2941.3,2940.3,0.001]
[1766075107079,0.548,2941.4,2940.3,2.6348]
[1766075107271,0.548,2941.4,2940.3,2.89838]
[1766075107787,0.548,2941.4,2940.3,0.26458]
[1766075107995,9.20794828,2942.1,2940.3,0.001]
[1766075108189,1.41788423,2942.0,2940.3,0.001]
[1766075108392,4.8010525,2942.4,2940.6,2.6338]
[1766075108611,0.548,2942.3,2940.8,2.6338]
[1766075108907,0.548,2942.2,2941.0,0.001]
[1766075109125,0.46438023,2941.5,2940.2,0.861]
[1766075109274,0.548,2941.4,2940.3,0.60470425]
[1766075109475,0.548,2941.4,2940.3,0.001]
[1766075109972,0.405504,2941.3,2940.1,0.001]
[1766075110571,0.548,2941.4,2940.1,0.001]
[1766075110796,0.405504,2941.7,2940.1,0.001]
[1766075110998,0.46438023,2942.0,2940.6,1.7728]
[1766075111201,0.548,2941.6,2940.5,0.861]
[1766075111677,0.548,2941.6,2940.2,2.6338]
[1766075111869,0.405504,2941.5,2940.2,2.6338]
[1766075112075,0.548,2941.4,2940.1,0.001]
[1766075112520,0.46438023,2941.7,2940.2,2.7192]
[1766075112701,0.548,2941.6,2940.4,2.7192]
[1766075112882,0.548,2941.6,2940.1,2.7202]
[1766075113591,0.405504,2941.5,2940.1,0.001]
[1766075114098,1.64703328,2941.9,2940.1,0.549]
[1766075114296,2.54711672,2943.9,2940.1,0.549]
[1766075114297,3.39847068,2942.5,2940.1,0.549]
[1766075114474,0.548,2942.4,2940.5,1.8061]
[1766075114677,9.21543457,2942.8,2941.1,1.8061]
[1766075114914,0.548,2942.5,2941.5,1.8061]
[1766075115112,12.61298419,2943.3,2941.1,0.548]
[1766075115415,2.36163933,2943.2,2941.5,0.9131]
[1766075115621,2.36163933,2943.2,2941.1,0.548]
[1766075115915,1.8972591,2943.2,2941.7,2.7192]
[1766075116125,1.8972591,2943.2,2941.3,0.9131]
[1766075116126,2.36163933,2943.2,2941.3,0.9131]
[1766075116426,0.87960684,2943.4,2942.3,1.8061]
[1766075116720,0.548,2943.3,2942.2,2.7192]
[1766075117014,12.61248463,2943.8,2942.2,2.7192]
[1766075117015,0.548,2943.4,2942.2,1.8061]
[1766075117385,0.002,2943.5,2942.0,7.34609652]
[1766075117585,0.548,2943.4,2942.4,2.7192]
[1766075117903,0.548,2943.4,2942.1,1.8061]
[1766075118111,0.548,2943.4,2942.5,2.7192]
[1766075118418,0.002,2943.5,2942.4,0.9131]
[1766075118601,0.548,2943.4,2942.7,2.7192]
[1766075118779,0.002,2943.5,2942.6,0.548]
[1766075118986,0.002,2943.5,2942.7,2.7192]
[1766075119184,0.002,2943.5,2942.8,2.74592]
[1766075119380,0.002,2943.5,2942.8,0.02672]
[1766075119745,0.002,2943.5,2943.0,2.7192]
[1766075120637,0.002,2943.5,2942.8,3.398112]
[1766075120987,0.002,2943.5,2942.5,0.548]
[1766075120988,0.002,2943.5,2942.9,3.39796697]
[1766075121215,0.002,2943.5,2942.9,6.11716697]
[1766075121400,0.002,2943.5,2942.9,7.06870652]
[1766075121607,0.002,2943.5,2943.1,2.7192]
[1766075122492,0.002,2944.1,2943.2,6.7953248]
[1766075122699,0.002,2944.1,2943.4,2.7192]
[1766075122894,0.002,2944.1,2943.2,1.8061]
[1766075123092,0.002,2944.1,2943.4,1.8061]
[1766075123299,0.002,2944.1,2943.4,2.7192]
[1766075123633,0.0012,2944.1,2943.4,2.7192]
[1766075125621,0.0012,2944.1,2943.2,1.8061]
[1766075125827,0.0012,2944.1,2943.3,2.7192]
[1766075126031,0.0012,2944.1,2942.6,3.39832847]
[1766075126328,0.0012,2944.1,2942.8,2.7192]
[1766075126528,0.0012,2944.1,2942.8,1.8061]
[1766075126701,0.548,2944.0,2942.8,2.7192]
[1766075126892,0.46438023,2943.8,2942.8,2.7192]
[1766075127295,3.94480866,2944.0,2942.8,2.7192]
[1766075127629,1.19865325,2943.9,2942.8,2.7192]
[1766075127788,1.19865325,2943.9,2942.7,0.548]
[1766075128193,1.19865325,2943.9,2942.7,3.2672]
[1766075128496,1.19865325,2943.9,2942.7,6.66536505]
[1766075128720,1.19865325,2943.9,2942.7,3.2672]
[1766075128915,0.85402706,2943.8,2942.7,3.2672]
[1766075129327,0.46438023,2943.7,2942.7,3.2672]
[1766075129531,0.46438023,2943.7,2942.7,2.7192]
[1766075129830,1.31840729,2943.8,2942.6,2.7192]
[1766075130131,0.46438023,2943.8,2942.6,2.7192]
[1766075130298,0.46438023,2943.8,2942.7,2.7192]
[1766075130498,0.46438023,2943.8,2942.5,3.39839794]
[1766075130692,0.0012,2944.1,2942.4,0.548]
[1766075130894,0.46438023,2943.9,2942.8,2.7192]
[1766075131103,3.39688985,2943.9,2942.6,0.9131]
[1766075131402,0.46438023,2943.8,2942.8,2.7192]
[1766075131800,0.46438023,2943.8,2942.5,2.7192]
[1766075132105,0.46438023,2943.8,2942.6,2.7192]
[1766075132307,0.0012,2944.1,2942.4,0.548]
[1766075132500,0.46438023,2943.1,2941.6,3.39947327]
[1766075132702,0.548,2943.3,2942.0,3.39899128]
[1766075132923,0.548,2943.3,2942.1,0.9131]
[1766075133233,6.7953248,2943.2,2942.1,0.9131]
[1766075133401,1.19871271,2943.1,2942.1,0.9131]
[1766075133943,0.73433248,2943.1,2942.2,0.9131]
[1766075134141,0.002,2943.8,2942.2,0.9131]
[1766075134318,0.548,2943.4,2942.2,0.9131]
[1766075134646,0.548,2943.4,2941.9,3.39915689]
[1766075134805,0.548,2943.4,2942.0,3.39899288]
[1766075135132,0.548,2943.4,2942.1,2.7192]
[1766075135435,1.01238023,2943.4,2942.2,2.7192]
[1766075135634,0.46438023,2943.3,2942.3,1.8061]
[1766075136214,0.46438023,2943.3,2942.3,2.7192]
[1766075137252,0.548,2943.4,2942.3,2.7192]
[1766075137405,0.002,2943.8,2941.8,0.548]
[1766075137606,0.002,2943.8,2942.4,1.8061]
[1766075137950,0.002,2943.8,2943.0,2.7192]
[1766075138449,0.002,2943.8,2943.0,0.548]
[1766075138678,0.5492,2944.1,2943.5,2.7192]
[1766075138876,0.5492,2944.1,2943.3,1.8061]
[1766075139081,0.5492,2944.1,2943.1,2.7192]
[1766075139373,0.0012,2944.1,2943.2,0.32672]
[1766075139576,0.0012,2944.1,2943.2,3.39762372]
[1766075140078,0.0012,2944.1,2943.5,2.7192]
[1766075140571,0.0012,2944.1,2943.2,3.39762613]
[1766075140741,0.0012,2944.1,2943.6,2.7192]
[1766075141264,0.0012,2944.1,2943.4,0.547]
[1766075141443,0.0012,2944.1,2943.5,2.7192]
[1766075141769,0.0012,2944.1,2943.6,2.7192]
[1766075142302,0.0012,2944.1,2943.4,3.94437595]
[1766075142467,0.002,2944.7,2943.4,7.34180749]
[1766075142767,3.39794837,2944.7,2943.7,2.6426]
[1766075142948,0.46638023,2944.7,2943.7,2.6426]
[1766075143267,0.38642876,2944.6,2943.6,1.8215]
[1766075143460,0.002,2944.7,2943.9,0.8211]
[1766075143638,0.002,2944.7,2943.9,2.6426]
[1766075144760,0.002,2945.0,2943.9,0.547]
[1766075145280,0.002,2945.2,2944.6,1.8215]
[1766075145457,0.002,2945.2,2944.4,2.6426]
[1766075145659,0.002,2945.2,2944.4,3.1896]
[1766075145846,0.002,2945.2,2944.4,2.6426]
[1766075146043,0.002,2945.2,2944.5,0.8211]
[1766075146245,0.002,2945.2,2944.6,2.6426]
[1766075146450,0.002,2945.2,2944.3,0.547]
[1766075146688,0.002,2945.2,2944.4,2.6426]
[1766075146856,0.547,2945.1,2943.0,0.001]
[1766075147045,0.547,2945.1,2943.6,1.8215]
[1766075147244,0.549,2945.2,2944.1,2.6426]
[1766075147446,0.46438023,2945.0,2943.7,1.06887381]
[1766075147656,0.46438023,2945.0,2944.2,1.8215]
[1766075147956,0.549,2945.2,2944.4,1.8215]
[1766075148168,0.46438023,2945.1,2944.4,2.6426]
[1766075148474,0.46358023,2945.1,2944.3,2.6426]
[1766075149348,3.39558573,2945.0,2943.2,3.3976624]
[1766075149546,0.33955857,2944.9,2943.4,2.6426]
[1766075149853,0.33955857,2944.9,2943.8,1.8215]
[1766075150174,0.33955857,2944.9,2943.3,0.88676624]
[1766075150375,0.8039388,2944.9,2943.7,0.8211]
[1766075150548,0.8039388,2944.9,2944.1,0.8211]
[1766075150749,0.8039388,2944.9,2944.2,2.6426]
[1766075150950,0.8039388,2944.9,2943.9,2.6426]
[1766075151169,0.8039388,2944.9,2943.8,0.547]
[1766075151170,0.8039388,2944.9,2944.3,1.8215]
[1766075151484,0.34155857,2944.9,2944.3,2.6426]
[1766075151696,0.002,2944.9,2944.3,2.6426]
[1766075151850,0.002,2944.9,2944.0,3.7156428]
[1766075152046,0.002,2944.9,2944.2,0.8211]
[1766075152251,0.002,2944.9,2944.3,2.6426]
[1766075152791,0.002,2944.9,2944.4,2.6426]
[1766075154156,0.002,2944.9,2944.6,2.6426]
[1766075154374,0.002,2945.2,2944.6,2.6426]
[1766075154572,3.39735657,2945.2,2944.6,2.6426]
[1766075154809,6.79271314,2945.2,2944.0,0.31896]
[1766075155095,0.46438023,2945.1,2943.9,2.6426]
[1766075155691,0.46438023,2945.0,2944.1,2.6426]
[1766075155869,0.46438023,2945.0,2944.2,2.6426]
[1766075156068,0.46438023,2945.0,2944.1,0.547]
[1766075156470,0.46438023,2945.0,2944.2,1.8215]
[1766075156783,0.46438023,2945.1,2944.3,2.6426]
[1766075157257,0.46438023,2945.1,2944.2,2.6426]
[1766075157496,1.78912674,2944.0,2941.9,1.21583639]
[1766075157695,0.405504,2943.4,2941.9,2.6426]
[1766075157930,0.405504,2943.2,2941.9,2.6426]
[1766075158292,0.405504,2943.0,2941.9,2.6426]
[1766075158723,0.405504,2942.8,2941.6,0.001]
[1766075158907,0.09414929,2942.9,2941.6,0.001]
[1766075158908,0.405504,2942.6,2941.6,0.001]
[1766075159321,0.46438023,2943.0,2941.7,2.6426]
[1766075159620,0.46438023,2943.0,2941.6,0.001]
[1766075159621,0.46438023,2942.7,2941.9,2.6426]
[1766075159823,9.21543457,2942.5,2941.1,2.6426]
[1766075160026,0.405504,2942.3,2940.9,2.6436]
[1766075161615,0.46438023,2942.2,2941.0,2.6784]
[1766075161814,0.547,2942.2,2941.1,2.94634]
[1766075162019,0.547,2942.2,2942.0,0.001]
[1766075162219,0.547,2942.2,2941.2,2.6784]
[1766075163032,0.547,2942.2,2941.4,0.878]
[1766075163244,0.547,2942.2,2941.6,2.6784]
[1766075163534,0.547,2942.2,2941.7,0.878]
[1766075163838,0.547,2942.2,2941.5,0.26784]
[1766075163839,18.99374433,2943.5,2942.1,2.6784]
[1766075164005,18.99374433,2943.5,2941.4,0.547]
[1766075164006,0.547,2943.4,2941.6,3.39951018]
[1766075164203,2.41845466,2943.3,2941.8,1.8004]
[1766075164415,1.95407443,2943.3,2942.1,2.6784]
[1766075165529,6.7953248,2943.2,2942.1,2.6784]
[1766075165728,0.46438023,2943.1,2942.1,2.6784]
[1766075166237,9.26615252,2943.1,2941.7,3.01835102]
[1766075166420,0.7259705,2943.0,2941.7,3.01835102]
[1766075166627,0.547,2942.9,2941.7,3.01835102]
[1766075167210,0.547,2942.9,2941.8,2.6784]
[1766075167747,9.26615252,2942.7,2941.2,0.547]
[1766075167911,1.6062401,2942.6,2941.2,0.547]
[1766075168114,1.01138023,2942.9,2941.2,0.547]
[1766075168299,4.40942815,2942.9,2941.5,1.8004]
[1766075168504,4.40942815,2942.9,2941.9,1.8004]
[1766075168721,4.40942815,2942.9,2942.1,1.8004]
[1766075168917,0.547,2942.9,2942.1,0.18004]
[1766075169136,0.547,2942.9,2941.7,2.6784]
[1766075169335,0.547,2942.9,2942.0,2.6794]
[1766075169530,0.547,2942.9,2942.0,0.001]
[1766075169749,0.547,2942.9,2942.1,2.6784]
[1766075170524,0.547,2942.9,2942.0,0.001]
[1766075170720,0.547,2942.9,2942.3,1.8004]
[1766075171754,0.547,2942.9,2942.2,2.6784]
[1766075171915,0.547,2942.9,2942.0,0.001]
[1766075172117,0.547,2942.9,2942.2,0.878]
[1766075172428,0.547,2942.9,2942.2,2.7158]
[1766075172631,0.547,2942.9,2942.2,2.98748]
[1766075173116,0.5462,2942.9,2942.3,2.7006]
[1766075173530,0.46438023,2943.3,2942.6,0.8628]
[1766075173832,0.547,2943.3,2942.7,2.7006]
[1766075174755,0.09414929,2942.8,2941.6,0.38479351]
[1766075174921,0.46438023,2942.2,2940.9,0.001]
[1766075175123,0.547,2942.1,2940.9,0.001]
[1766075175561,0.547,2942.1,2940.9,2.7016]
[1766075175773,0.46438023,2941.9,2940.9,0.001]
[1766075176933,0.46438023,2941.9,2940.9,2.7016]
[1766075177132,1.10019335,2941.9,2940.9,2.97186]
[1766075177945,0.46438023,2941.7,2940.9,2.97186]
[1766075178567,0.547,2941.6,2941.0,2.7006]
[1766075178774,1.10019335,2941.9,2941.1,0.8628]
[1766075179059,0.547,2942.2,2940.9,0.27126]
[1766075179230,0.46438023,2942.5,2940.9,3.67157658]
[1766075179431,0.547,2942.4,2940.9,7.07189621]
[1766075179829,0.547,2942.4,2941.0,0.46438023]
[1766075180155,0.547,2942.6,2941.3,0.8628]
[1766075180346,0.547,2942.6,2941.6,1.8378]
[1766075180550,0.98795136,2942.6,2941.7,0.8628]
[1766075181831,0.547,2942.6,2941.5,3.39962153]
[1766075182042,0.547,2942.6,2941.6,1.8378]
[1766075182263,0.547,2942.6,2941.8,1.8378]
[1766075182461,0.547,2942.6,2941.8,2.7006]
[1766075182647,0.547,2942.6,2941.5,3.94661685]
[1766075182852,0.547,2942.6,2941.6,0.39466169]
[1766075183258,7.34379976,2942.6,2941.2,1.8378]
[1766075183586,0.46438023,2942.5,2941.4,2.7006]
[1766075183733,3.39858618,2942.4,2941.4,2.7006]
[1766075184236,6.79717236,2942.4,2941.4,2.7006]
[1766075184434,0.46438023,2942.4,2941.0,0.547]
[1766075184737,0.90537008,2942.4,2941.3,0.8628]
[1766075184965,0.90537008,2942.4,2941.6,2.7006]
[1766075185743,4.3039652,2942.4,2941.6,2.7006]
[1766075186142,7.70256032,2942.4,2941.1,2.7006]
[1766075186528,7.70256032,2942.4,2941.0,0.001]
[1766075186529,0.405504,2942.3,2941.0,0.001]
[1766075186759,1.15066594,2942.2,2941.0,0.001]
[1766075186934,0.547,2942.1,2941.0,0.001]
[1766075187432,0.547,2942.1,2941.0,2.7016]
[1766075187632,0.547,2942.1,2941.0,0.001]
[1766075187857,0.46438023,2942.0,2941.1,2.7006]
[1766075188060,1.02048762,2942.0,2941.1,2.7006]
[1766075188262,0.55610739,2942.0,2941.0,0.001]
[1766075188572,0.55610739,2942.0,2941.2,2.7006]
[1766075188747,0.547,2941.9,2941.2,2.7006]
[1766075189634,1.04364393,2941.9,2941.2,2.7006]
[1766075189869,7.84205495,2941.9,2941.0,0.001]
[1766075190070,4.44284944,2941.9,2941.0,0.001]
[1766075190487,1.04364393,2941.9,2941.0,0.001]
[1766075190651,1.04364393,2941.9,2941.2,3.39990156]
[1766075190652,0.547,2941.9,2941.2,3.39990156]
[1766075190963,0.547,2941.9,2941.5,2.7006]
[1766075191184,0.547,2941.9,2941.1,1.8378]
[1766075191480,0.547,2941.9,2941.2,2.7006]
[1766075191653,0.547,2941.9,2941.2,2.97076]
[1766075192343,0.547,2941.9,2941.2,6.37070702]
[1766075192570,0.547,2941.9,2941.3,2.7006]
[1766075193059,0.46438023,2942.5,2941.4,0.8628]
[1766075193374,8.80147257,2942.9,2941.2,3.67012833]
[1766075193375,0.547,2942.4,2941.2,2.97076]
[1766075193576,1.01138023,2942.4,2941.2,2.7006]
[1766075193949,0.46438023,2942.2,2941.2,2.7006]
[1766075194869,0.002,2942.4,2941.4,1.8378]
[1766075195176,1.01138023,2942.3,2941.6,2.7006]
[1766075195954,0.46438023,2942.2,2941.6,2.7006]
[1766075196273,0.46438023,2942.2,2941.0,0.001]
[1766075196476,0.78107284,2942.2,2941.4,0.8628]
[1766075196640,0.78107284,2942.2,2941.5,2.7006]
[1766075196844,0.547,2942.3,2941.5,2.7006]
[1766075197871,0.5462,2942.3,2941.5,2.7006]
[1766075198070,1.01058023,2942.3,2941.5,2.7006]
[1766075198876,4.40933334,2942.3,2941.5,2.7006]
[1766075199172,3.94491743,2942.3,2941.5,2.7006]
[1766075199345,0.46438023,2942.2,2941.5,2.7006]
[1766075199552,1.01058023,2942.3,2941.5,2.7006]
[1766075199748,4.40932518,2942.3,2941.5,2.7006]
[1766075200266,0.5462,2942.3,2941.5,2.7006]
[1766075200466,0.46638023,2942.4,2941.5,0.27006]
[1766075200776,0.547,2942.3,2941.0,0.001]
[1766075200968,0.46438023,2941.9,2941.0,0.001]
[1766075201547,0.46438023,2941.9,2941.0,2.7016]
[1766075201877,9.20697657,2942.7,2941.3,1.8378]
[1766075202176,0.002,2942.4,2941.8,2.7006]
[1766075202413,0.002,2942.4,2941.4,3.58350323]
[1766075202781,0.002,2942.4,2941.6,0.8846]
[1766075202951,0.002,2942.4,2941.8,2.612]
[1766075203151,0.002,2942.4,2941.7,2.612]
[1766075203348,0.002,2942.4,2941.7,2.9279]
[1766075203769,0.547,2942.3,2941.4,0.18378]
[1766075203969,0.46438023,2942.2,2941.3,2.612]
[1766075204375,0.46438023,2942.2,2941.0,0.001]
[1766075204376,3.39893273,2942.1,2941.0,0.001]
[1766075204576,6.79786546,2942.1,2941.0,0.001]
[1766075204779,0.46438023,2942.0,2941.0,0.001]
[1766075205284,0.547,2941.9,2941.0,0.001]
[1766075205672,8.80147257,2941.8,2940.8,0.001]
[1766075205878,1.39922749,2941.7,2940.8,0.001]
[1766075206380,1.39922749,2941.7,2940.6,0.001]
[1766075206381,0.46438023,2941.5,2940.6,0.001]
[1766075206565,0.547,2941.4,2940.6,0.001]
[1766075208489,0.46438023,2941.2,2940.6,0.001]
[1766075208991,0.547,2941.1,2940.6,0.001]
[1766075211893,0.002,2942.3,2940.6,0.03500666]
[1766075212094,8.80147257,2941.7,2940.6,0.001]
[1766075212295,1.01138023,2941.6,2940.6,0.001]
[1766075212493,0.98128528,2941.5,2940.6,0.001]
[1766075212665,3.39974161,2941.4,2940.6,0.001]
[1766075212865,0.46438023,2941.3,2940.6,0.001]
[1766075213061,0.547,2941.2,2940.6,0.001]
[1766075213783,0.98128528,2941.5,2940.6,2.613]
[1766075214110,0.547,2941.5,2940.7,0.2614]
[1766075214405,0.46438023,2942.1,2940.7,0.8846]
[1766075214584,0.002,2942.3,2940.9,1.7274]
[1766075214787,0.002,2942.3,2941.5,2.612]
[1766075215319,3.94581721,2942.2,2941.1,2.612]
[1766075215613,0.46438023,2942.0,2940.6,0.548]
[1766075215777,0.92658528,2941.9,2940.7,2.612]
[1766075215975,0.547,2941.8,2940.8,0.8846]